fUSD/lending_fUSD_20251109
["ID","MTS","AMOUNT","RATE_DAILY","PERIOD"]
[393445386,1762665033628,-800.0,0.000175,6]
[393445387,1762665033639,-303.5,0.00017519,2]
[393445388,1762665033648,-1726.84557519,0.00017536,2]
[393445389,1762665033659,-1359.62,0.00017547,2]
[393445390,1762665033669,-208.09145227,0.00017565,2]
[393445391,1762665033680,-150.0,0.00017573,2]
[393445392,1762665033691,-500.0,0.00017573,2]
[393445393,1762665033702,-375.91,0.00017573,2]
[393445394,1762665033712,-1700.0,0.000176,6]
[393445395,1762665033722,-500.0,0.000177,2]
[393445396,1762665033733,-533.0,0.000177,6]
[393445397,1762665033743,-500.0,0.000177,6]
[393445398,1762665033752,-2600.0,0.000177,6]
[393445399,1762665033762,-1264.0,0.00017709,2]
[393445400,1762665033772,-150.0,0.0001771,2]
[393445401,1762665033782,-500.0,0.0001771,2]
[393445402,1762665033792,-500.0,0.0001775,2]
[393445403,1762665033802,-150.0,0.0001775,2]
[393445404,1762665033812,-202.65981266,0.0001775,2]
[393445405,1762665033822,-204.5436472,0.0001775,2]
[393445406,1762665033832,-262.54057205,0.0001775,2]
[393445407,1762665033842,-156.52540464,0.0001775,2]
[393445408,1762665033852,-251.94759367,0.0001775,2]
[393445409,1762665033863,-500.0,0.00017768,2]
[393445410,1762665033872,-3500.0,0.000178,6]
[393445411,1762665033882,-154.99215178,0.00017808,2]
[393445412,1762665033892,-829.81666734,0.00017821,2]
[393445413,1762665033901,-1000.0,0.00017821,2]
[393445414,1762665033911,-1000.0,0.00017821,2]
[393445415,1762665033922,-1000.0,0.00017821,2]
[393445416,1762665033931,-1000.0,0.00017821,2]
[393445417,1762665033941,-501.00341295,0.00017821,2]
[393445418,1762665033953,-1149.70851277,0.00017821,2]
[393445419,1762665033963,-319.42314139,0.00017821,2]
[393445420,1762665033973,-1000.0,0.00017821,2]
[393445421,1762665033983,-676.90621989,0.00017821,2]
[393445422,1762665033993,-1000.0,0.00017821,2]
[393445423,1762665034003,-1000.0,0.00017821,2]
[393445424,1762665034013,-1003.70945434,0.00017821,2]
[393445425,1762665034023,-1144.56034344,0.00017821,2]
[393445426,1762665034033,-1000.0,0.00017821,2]
[393445427,1762665034044,-1000.0,0.00017821,2]
[393445428,1762665034054,-1000.0,0.00017821,2]
[393445429,1762665034064,-1359.62,0.00017821,2]
[393445430,1762665034075,-14836.07632393,0.0001783,2]
[393445431,1762665034084,-500.0,0.00017837,2]
[393445432,1762665034094,-533.0,0.00017837,6]
[393445433,1762665034104,-500.0,0.00017837,6]
[393445434,1762665034117,-193.65862463,0.00017847,2]
[393445435,1762665034128,-500.0,0.00017847,2]
[393445436,1762665034139,-335.20114636,0.0001787,2]
[393445437,1762665034148,-14836.07632387,0.00017877,2]
[393445438,1762665034159,-150.0,0.00017887,2]
[393445439,1762665034169,-1597.82263897,0.000179,2]
[393445440,1762665034179,-164.54588343,0.000179,2]
[393445441,1762665034190,-179.42828377,0.000179,2]
[393445442,1762665034200,-5000.0,0.000179,2]
[393445443,1762665034209,-157.56031443,0.000179,2]
[393445444,1762665034219,-4400.0,0.000179,6]
[393445445,1762665034229,-5502.41207148,0.000179,2]
[393445446,1762665034239,-285.1534904,0.000179,3]
[393445447,1762665034249,-314.67230973,0.000179,2]
[393445448,1762665034259,-635.6551863,0.000179,2]
[393445449,1762665034269,-570.8952,0.0001791,2]
[393445450,1762665034279,-14836.07632387,0.00017925,2]
[393445451,1762665034289,-500.0,0.00017939,2]
[393445452,1762665034299,-466.66758349,0.00017972,2]
[393445453,1762665034309,-185.51626909,0.00017972,2]
[393445454,1762665034319,-234.35511109,0.00017972,2]
[393445455,1762665034329,-14836.07632387,0.00017972,2]
[393445456,1762665034340,-329.0,0.00017973,2]
[393445457,1762665034350,-461.0,0.00017973,2]
[393445458,1762665034360,-503.93536918,0.00017973,2]
[393445459,1762665034371,-500.0,0.00017973,2]
[393445460,1762665034381,-540.33648278,0.00017973,2]
[393445461,1762665034390,-502.05525758,0.00017973,2]
[393445462,1762665034400,-500.98799786,0.00017973,2]
[393445463,1762665034411,-500.969661,0.00017973,2]
[393445464,1762665034420,-517.86787982,0.00017973,2]
[393445465,1762665034430,-467.66126506,0.00017973,2]
[393445466,1762665034441,-503.45791664,0.00017973,2]
[393445467,1762665034450,-504.23868948,0.00017973,2]
[393445468,1762665034463,-502.29417655,0.00017973,2]
[393445469,1762665034474,-500.0,0.00017973,2]
[393445470,1762665034484,-500.0,0.00017973,2]
[393445471,1762665034494,-500.0,0.00017973,2]
[393445472,1762665034508,-507.04189464,0.00017973,2]
[393445473,1762665034518,-500.0,0.00017973,2]
[393445474,1762665034527,-500.0,0.00017973,2]
[393445475,1762665034537,-500.96833596,0.00017973,2]
[393445476,1762665034548,-375.37587173,0.00017973,2]
[393445477,1762665034559,-502.42842853,0.00017973,2]
[393445478,1762665034569,-305.03846107,0.00017973,2]
[393445479,1762665034579,-326.92607289,0.00017973,2]
[393445480,1762665034589,-500.76621307,0.00017973,2]
[393445481,1762665034599,-500.0,0.00017973,2]
[393445482,1762665034609,-218.74086562,0.00017973,2]
[393445483,1762665034619,-500.0,0.00017973,2]
[393445484,1762665034628,-526.49985926,0.00017973,2]
[393445485,1762665034638,-500.0,0.00017973,2]
[393445486,1762665034648,-500.0,0.00017973,2]
[393445487,1762665034657,-163.72327271,0.00017973,2]
[393445488,1762665034667,-501.45740675,0.00017973,2]
[393445489,1762665034677,-500.0,0.00017974,2]
[393445490,1762665034686,-533.0,0.00017974,6]
[393445491,1762665034697,-500.0,0.00017974,6]
[393445492,1762665034708,-500.0,0.00017984,2]
[393445493,1762665034718,-300.0,0.00017988,2]
[393445494,1762665034728,-1616.56491994,0.0001799,2]
[393445495,1762665034739,-1616.56491994,0.0001799,2]
[393445496,1762665034748,-151.0,0.00017997,2]
[393445497,1762665034759,-500.0,0.00017998,2]
[393445498,1762665034768,-5648.750715,0.00017998,2]
[393445499,1762665034777,-1065.1751935,0.00017998,2]
[393445500,1762665034787,-360.32074579,0.00017998,2]
[393445501,1762665034797,-923.667688,0.00017998,2]
[393445502,1762665034807,-18364.2082741,0.00017998,2]
[393445503,1762665034816,-205.85842605,0.00017999,2]
[393445504,1762665034825,-500.0,0.00017999,2]
[393445505,1762665034835,-500.0,0.00017999,2]
[393445506,1762665034844,-500.0,0.00017999,2]
[393445507,1762665034854,-500.0,0.00017999,2]
[393445508,1762665034863,-500.0,0.00017999,2]
[393445509,1762665034873,-500.0,0.00017999,2]
[393445510,1762665034882,-500.0,0.00017999,2]
[393445511,1762665034895,-500.0,0.00017999,2]
[393445512,1762665034905,-500.0,0.00017999,2]
[393445513,1762665034915,-264.24979066,0.00017999,2]
[393445514,1762665034925,-666.0,0.00017999,2]
[393445515,1762665034935,-500.0,0.00017999,2]
[393445516,1762665034945,-500.0,0.00017999,2]
[393445517,1762665034954,-500.0,0.00017999,2]
[393445518,1762665034964,-500.0,0.00017999,2]
[393445519,1762665034974,-500.0,0.00017999,2]
[393445520,1762665034985,-500.0,0.00017999,2]
[393445521,1762665034995,-500.0,0.00017999,2]
[393445522,1762665035005,-459.59484775,0.00017999,2]
[393445523,1762665035015,-449.24671781,0.00017999,2]
[393445524,1762665035025,-500.0,0.00017999,2]
[393445525,1762665035035,-332.10480629,0.00017999,2]
[393445526,1762665035045,-500.0,0.00017999,2]
[393445527,1762665035055,-241.21753528,0.00017999,2]
[393445528,1762665035066,-500.0,0.00017999,2]
[393445529,1762665035077,-500.0,0.00017999,2]
[393445530,1762665035088,-500.0,0.00017999,2]
[393445531,1762665035099,-500.0,0.00017999,2]
[393445532,1762665035107,-500.0,0.00017999,2]
[393445533,1762665035117,-500.0,0.00017999,2]
[393445534,1762665035126,-500.0,0.00017999,2]
[393445535,1762665035137,-500.0,0.00017999,2]
[393445536,1762665035147,-500.0,0.00017999,2]
[393445537,1762665035157,-500.0,0.00017999,2]
[393445538,1762665035167,-500.0,0.00017999,2]
[393445539,1762665035176,-500.0,0.00017999,2]
[393445540,1762665035186,-500.0,0.00017999,2]
[393445541,1762665035196,-500.0,0.00017999,2]
[393445542,1762665035206,-500.0,0.00017999,2]
[393445543,1762665035216,-500.0,0.00017999,2]
[393445544,1762665035226,-500.0,0.00017999,2]
[393445545,1762665035236,-500.0,0.00017999,2]
[393445546,1762665035246,-500.0,0.00017999,2]
[393445547,1762665035256,-500.0,0.00017999,2]
[393445548,1762665035266,-500.0,0.00017999,2]
[393445549,1762665035275,-500.0,0.00017999,2]
[393445550,1762665035285,-500.0,0.00017999,2]
[393445551,1762665035295,-204.98021323,0.00017999,2]
[393445552,1762665035305,-500.0,0.00017999,2]
[393445553,1762665035315,-604.41947902,0.00017999,2]
[393445554,1762665035324,-307.54098138,0.00017999,2]
[393445555,1762665035334,-666.0,0.00017999,2]
[393445556,1762665035343,-638.95883668,0.00017999,2]
[393445557,1762665035353,-319.95081928,0.00017999,2]
[393445558,1762665035362,-512.94152369,0.00017999,2]
[393445559,1762665035372,-500.0,0.00017999,2]
[393445560,1762665035382,-500.0,0.00017999,2]
[393445561,1762665035392,-500.0,0.00017999,2]
[393445562,1762665035402,-542.2660844,0.00017999,2]
[393445563,1762665035413,-300.0,0.00017999,2]
[393445564,1762665035423,-666.0,0.00017999,2]
[393445565,1762665035433,-464.0100386,0.00017999,2]
[393445566,1762665035785,-35.9899614,0.00017999,2]
[393445567,1762665035795,-269.8581518,0.00017999,2]
[393445568,1762665035807,-230.1418482,0.00017999,2]
[393445569,1762665035816,-126.11200445,0.00017999,2]
[393445570,1762665035830,-373.88799555,0.00017999,2]
[393445571,1762665035840,-500.0,0.00017999,2]
[393445572,1762665035850,-500.0,0.00017999,2]
[393445573,1762665035859,-0.10608246,0.00017999,2]
[393445574,1762665035870,-356.0,0.00017999,2]
[393445575,1762665035882,-143.89391754,0.00017999,2]
[393445576,1762665035892,-187.23214529,0.00017999,2]
[393445577,1762665035902,-500.0,0.00017999,2]
[393445578,1762665035912,-500.0,0.00017999,2]
[393445579,1762665035921,-500.0,0.00017999,2]
[393445580,1762665035931,-500.0,0.00017999,2]
[393445581,1762665035940,-500.0,0.00017999,2]
[393445582,1762665035950,-500.0,0.00017999,2]
[393445583,1762665035959,-402.87393717,0.00017999,2]
[393445584,1762665035971,-97.12606283,0.00017999,2]
[393445585,1762665035981,-232.51861703,0.00017999,2]
[393445587,1762665038191,-302.0,0.00017299,2]
[393445588,1762665038202,-2969.21513777,0.000179,2]
[393445589,1762665038212,-267.48138297,0.00017999,2]
[393445590,1762665038222,-500.0,0.00017999,2]
[393445591,1762665038236,-500.0,0.00017999,2]
[393445592,1762665038250,-500.0,0.00017999,2]
[393445593,1762665038259,-500.0,0.00017999,2]
[393445594,1762665038270,-500.0,0.00017999,2]
[393445595,1762665038279,-500.0,0.00017999,2]
[393445596,1762665038289,-500.0,0.00017999,2]
[393445597,1762665038299,-525.46020506,0.00017999,2]
[393445598,1762665038308,-500.0,0.00017999,2]
[393445599,1762665038318,-500.0,0.00017999,2]
[393445600,1762665038328,-500.0,0.00017999,2]
[393445601,1762665038337,-500.0,0.00017999,2]
[393445602,1762665038347,-500.0,0.00017999,2]
[393445603,1762665038357,-500.0,0.00017999,2]
[393445604,1762665038367,-500.0,0.00017999,2]
[393445605,1762665038376,-500.0,0.00017999,2]
[393445606,1762665038386,-436.90186001,0.00017999,2]
[393445607,1762665038396,-411.47396237,0.00017999,2]
[393445608,1762665038406,-3655884.77883073,0.00018,2]
[393445610,1762665038418,-1619.7181,0.00018,2]
[393445621,1762665040273,-534.0,0.00018,2]
[393445622,1762665040330,-330.19046793,0.00018,2]
[393445623,1762665040342,-1081.0,0.00018,2]
[393445624,1762665040871,-1.7e-07,0.00018,2]
[393445638,1762665046356,-1080.0,0.000179,2]
[393445639,1762665046471,-14467.79475528,0.000179,2]
[393445640,1762665046481,-4094.89866697,0.00017902,2]
[393445649,1762665173715,500.0,0.00039163,120]
[393445650,1762665173974,500.0,0.00039163,120]
[393445651,1762665174236,500.0,0.00039163,120]
[393445652,1762665174463,500.0,0.00039163,120]
[393445653,1762665174705,500.0,0.00039163,120]
[393445654,1762665174953,500.0,0.00039163,120]
[393445655,1762665175215,500.0,0.00039163,120]
[393445656,1762665175490,500.0,0.00039163,120]
[393445657,1762665176101,500.0,0.00039163,120]
[393445658,1762665176347,500.0,0.00039163,120]
[393445659,1762665176595,295.159591,0.00039163,120]
[393445660,1762665382260,465.3,8.622e-05,2]
[393445661,1762665382465,465.3,9.058e-05,2]
[393445662,1762665382667,465.3,9.494e-05,2]
[393445663,1762665382898,465.3,9.93e-05,2]
[393445664,1762665383195,465.3,0.00010366,2]
[393445665,1762665383382,465.3,0.00010802,2]
[393445666,1762665383585,465.3,0.00011238,2]
[393445667,1762665383775,465.3,0.00011674,2]
[393445668,1762665383977,465.3,0.0001211,2]
[393445669,1762665384196,465.3,0.00012546,2]
[393445670,1762665384388,465.3,0.00012982,2]
[393445671,1762665384623,465.3,0.00013418,2]
[393445672,1762665384833,465.3,0.00013854,2]
[393445673,1762665385029,465.3,0.0001429,2]
[393445674,1762665385223,465.3,0.00014726,2]
[393445675,1762665385431,465.3,0.00015162,2]
[393445676,1762665385617,465.3,0.00015598,2]
[393445677,1762665385812,465.3,0.00016034,2]
[393445678,1762665386014,465.3,0.0001647,2]
[393445679,1762665387104,-174.14909326,0.00016906,2]
[393445680,1762665392259,-291.15090674,0.00016906,2]
[393445681,1762665392282,-28.09612229,0.00016932,2]
[393445682,1762665576641,10000.0,0.000167,5]
[393445683,1762665632256,10000.0,0.000167,5]
[393445684,1762665734982,-161.57772436,0.00016705,2]
[393445685,1762665737326,-38.42227564,0.00016705,2]
[393445686,1762665737349,-132.84001368,0.00016714,2]
[393445687,1762665740875,-17.15998632,0.00016714,2]
[393445688,1762665740898,-154.19127046,0.00016823,2]
[393445689,1762665754203,1000.0,0.000165,2]
[393445690,1762665771548,1000.0,0.000163,2]
[393445692,1762665790683,1000.0,0.000162,2]
[393445693,1762665791413,-95.80872954,0.00016823,2]
[393445694,1762665791435,-232.84001368,0.00016877,2]
[393445695,1762665793769,-151.0,0.00016877,2]
[393445696,1762665795927,-211.77998632,0.00016877,2]
[393445697,1762665797579,-310.53,0.00016877,2]
[393445698,1762665824090,175.97,0.00025145,120]
[393445699,1762665859116,-175.97,0.00016763,2]
[393445700,1762665859138,-176.42811301,0.0001682,2]
[393445701,1762665862887,-123.57188699,0.0001682,2]
[393445702,1762665862909,-27.42811301,0.0001682,2]
[393445703,1762665890944,155.0,0.00030136,120]
[393445704,1762665901459,500.0,0.00039134,120]
[393445705,1762665901697,500.0,0.00039134,120]
[393445706,1762665901943,500.0,0.00039134,120]
[393445707,1762665902204,500.0,0.00039134,120]
[393445708,1762665902837,500.0,0.00039134,120]
[393445709,1762665903202,500.0,0.00039134,120]
[393445711,1762665944968,178.94,0.00015867,2]
[393445712,1762665952076,2811.29,0.00015,10]
[393445713,1762666013052,31083.80795915,0.000162,5]
[393445714,1762666069486,1148.38707339,0.00015,10]
[393445715,1762666069935,4494.57,0.00015,2]
[393445716,1762666069959,10000.01,0.00015,2]
[393445717,1762666069982,10000.01,0.00015,2]
[393445718,1762666070006,10000.01,0.00015,2]
[393445719,1762666070030,10000.01,0.00015,2]
[393445720,1762666070053,10000.01,0.00015,2]
[393445721,1762666070078,10000.01,0.00015,2]
[393445722,1762666070103,10000.01,0.00015,2]
[393445723,1762666070127,10000.01,0.00015,2]
[393445724,1762666070150,10000.01,0.00015,2]
[393445725,1762666070183,151158.20914676,0.00015,2]
[393445726,1762666070211,109000.0,0.00015,2]
[393445727,1762666070244,38458.107336,0.00015,2]
[393445728,1762666086402,565.84422964,0.000135,2]
[393445729,1762666091825,501.50724799,0.00014973,2]
[393445730,1762666092209,500.0,0.00014973,2]
[393445731,1762666092270,588.53559498,0.00016068,2]
[393445732,1762666092298,1000.0,0.00015521,2]
[393445733,1762666114915,7911.47440502,0.00015,3]
[393445734,1762666114938,10000.01,0.00015,3]
[393445735,1762666114961,10000.01,0.00015,3]
[393445736,1762666114984,10000.01,0.00015,3]
[393445737,1762666115008,10000.01,0.00015,3]
[393445738,1762666115031,10000.01,0.00015,3]
[393445739,1762666115054,10000.01,0.00015,3]
[393445740,1762666115081,10000.01,0.00015,3]
[393445741,1762666115104,10000.01,0.00015,3]
[393445742,1762666115127,7089.44559498,0.00015,3]
[393445743,1762666115669,-211.616053,0.00016736,2]
[393445748,1762666148115,501.18079556,0.00014973,2]
[393445749,1762666159210,-200.0,0.00016719,2]
[393445750,1762666159233,-166.72035668,0.0001677,2]
[393445758,1762666232526,-83.27964332,0.0001677,2]
[393445759,1762666232536,-441.52572497,0.00016789,2]
[393445760,1762666232550,-613.85741355,0.00016789,2]
[393445761,1762666232640,-145.00058564,0.00016789,2]
[393445762,1762666232650,-195.0,0.00016809,2]
[393445763,1762666232661,-300.0,0.00016849,2]
[393445764,1762666232670,-195.0,0.00016888,2]
[393445765,1762666232681,-300.0,0.00016889,2]
[393445766,1762666232691,-221.90387771,0.00016932,2]
[393445767,1762666232700,-250.0,0.00017,2]
[393445768,1762666232710,-1200.0,0.0001717,2]
[393445769,1762666232720,-1200.0,0.00017171,2]
[393445770,1762666232731,-300.0,0.00017172,2]
[393445771,1762666232740,-300.0,0.00017172,2]
[393445772,1762666232751,-500.0,0.00017173,2]
[393445774,1762666232764,-501.81004311,0.00017173,2]
[393445775,1762666232779,-500.0,0.00017173,2]
[393445776,1762666232789,-242.46001948,0.00017173,2]
[393445777,1762666232799,-500.0,0.00017173,2]
[393445778,1762666232814,-500.0,0.00017173,2]
[393445780,1762666232824,-540.93365665,0.00017173,2]
[393445782,1762666232838,-500.0,0.00017173,2]
[393445784,1762666232849,-500.0,0.00017173,2]
[393445786,1762666232860,-550.0,0.00017197,2]
[393445788,1762666232871,-1002.33053948,0.00017198,2]
[393445790,1762666232884,-500.0,0.00017198,2]
[393445792,1762666232894,-500.0,0.00017198,2]
[393445794,1762666232904,-500.0,0.00017198,2]
[393445796,1762666232914,-500.0,0.00017198,2]
[393445798,1762666232924,-500.0,0.00017198,2]
[393445800,1762666232934,-500.0,0.00017198,2]
[393445802,1762666232943,-500.0,0.00017198,2]
[393445804,1762666232953,-500.0,0.00017198,2]
[393445806,1762666232962,-500.0,0.00017198,2]
[393445808,1762666232972,-500.0,0.00017198,2]
[393445810,1762666232982,-500.0,0.00017198,2]
[393445812,1762666232991,-500.0,0.00017198,2]
[393445814,1762666233000,-500.0,0.00017198,2]
[393445816,1762666233012,-500.0,0.00017198,2]
[393445818,1762666233022,-500.0,0.00017198,2]
[393445820,1762666233031,-500.0,0.00017198,2]
[393445823,1762666233044,-500.0,0.00017198,2]
[393445825,1762666233055,-500.0,0.00017198,2]
[393445827,1762666233066,-500.0,0.00017198,2]
[393445829,1762666233075,-500.0,0.00017198,2]
[393445831,1762666233085,-500.0,0.00017198,2]
[393445833,1762666233094,-359.95069319,0.00017198,2]
[393445835,1762666233103,-500.0,0.00017198,2]
[393445837,1762666233112,-500.0,0.00017198,2]
[393445839,1762666233122,-500.0,0.00017198,2]
[393445841,1762666233132,-500.0,0.00017198,2]
[393445843,1762666233142,-520.47304342,0.00017198,2]
[393445845,1762666233151,-520.47304342,0.00017198,2]
[393445847,1762666233161,-520.47304342,0.00017198,2]
[393445849,1762666233171,-520.47304342,0.00017198,2]
[393445851,1762666233180,-520.47304342,0.00017198,2]
[393445853,1762666233191,-186.4609535,0.00017198,2]
[393445855,1762666233203,-334.01208992,0.00017198,2]
[393445857,1762666233213,-520.47304342,0.00017198,2]
[393445859,1762666233223,-520.47304342,0.00017198,2]
[393445861,1762666233232,-520.47304342,0.00017198,2]
[393445863,1762666233240,-520.47304342,0.00017198,2]
[393445865,1762666233250,-520.47304342,0.00017198,2]
[393445867,1762666233260,-520.47304342,0.00017198,2]
[393445869,1762666233269,-520.47304342,0.00017198,2]
[393445870,1762666233278,-520.47304342,0.00017198,2]
[393445872,1762666233287,-520.47304342,0.00017198,2]
[393445874,1762666233297,-520.47304342,0.00017198,2]
[393445875,1762666233307,-520.47304342,0.00017198,2]
[393445877,1762666233316,-520.47304342,0.00017198,2]
[393445879,1762666233326,-520.47304342,0.00017198,2]
[393445881,1762666233336,-540.94608684,0.00017198,2]
[393445883,1762666233345,-500.0,0.00017198,2]
[393445885,1762666233355,-520.47304342,0.00017198,2]
[393445887,1762666233365,-520.47304342,0.00017198,2]
[393445889,1762666233376,-520.47304342,0.00017198,2]
[393445890,1762666233386,-520.47304342,0.00017198,2]
[393445891,1762666233395,-520.47304342,0.00017198,2]
[393445892,1762666233405,-520.47304342,0.00017198,2]
[393445893,1762666233415,-520.47304342,0.00017198,2]
[393445894,1762666233435,-1493.8,0.00017198,2]
[393445895,1762666233446,-1546.82553139,0.00017199,2]
[393445896,1762666233459,-267.35,0.00017199,2]
[393445897,1762666233471,-367.44,0.00017199,2]
[393445898,1762666238345,-2453.88562971,0.00017199,2]
[393445899,1762666238412,-63367.9877389,0.00017199,2]
[393445900,1762666238422,-300.0,0.000172,6]
[393445901,1762666238432,-600.0,0.000173,6]
[393445902,1762666238442,-195.62,0.00017334,2]
[393445903,1762666238452,-310.53,0.00017347,2]
[393445904,1762666238463,-900.0,0.000174,6]
[393445905,1762666238474,-1493.8,0.00017472,2]
[393445906,1762666238484,-400.46646103,0.000175,2]
[393445907,1762666238494,-1200.0,0.000175,6]
[393445908,1762666238504,-227.0,0.00017523,2]
[393445909,1762666238516,-1726.84557519,0.0001754,2]
[393445910,1762666238527,-227.0,0.0001754,2]
[393445911,1762666238537,-1000.0,0.00017598,2]
[393445912,1762666238548,-1500.0,0.000176,6]
[393445913,1762666238558,-227.0,0.00017609,2]
[393445914,1762666238568,-227.0,0.00017666,2]
[393445915,1762666238578,-227.0,0.00017699,2]
[393445917,1762666238588,-300.0,0.000177,6]
[393445919,1762666238598,-375.11589732,0.00017721,2]
[393445921,1762666238607,-430.47914244,0.00017721,2]
[393445923,1762666238616,-1000.0,0.00017721,2]
[393445924,1762666238626,-501.83285392,0.00017721,2]
[393445926,1762666238636,-510.9176893,0.00017721,2]
[393445928,1762666238646,-1000.0,0.00017721,2]
[393445930,1762666238656,-300.0,0.00017728,2]
[393445932,1762666238667,-901.88380068,0.00017734,2]
[393445933,1762666238677,-300.0,0.00017734,2]
[393445935,1762666238687,-500.0,0.0001774,2]
[393445937,1762666238696,-1493.8,0.00017746,2]
[393445939,1762666238706,-300.0,0.00017746,2]
[393445941,1762666238716,-300.0,0.0001775,2]
[393445943,1762666238726,-347.0,0.00017752,2]
[393445945,1762666238736,-300.0,0.00017754,2]
[393445946,1762666238746,-300.0,0.00017755,2]
[393445948,1762666238756,-227.0,0.0001777,2]
[393445950,1762666238767,-227.0,0.00017782,2]
[393445952,1762666238776,-300.0,0.00017788,2]
[393445954,1762666238786,-300.0,0.00017794,2]
[393445956,1762666238795,-11257.03733999,0.000178,2]
[393445958,1762666238805,-300.0,0.000178,6]
[393445960,1762666238816,-300.0,0.00017806,2]
[393445961,1762666238827,-227.0,0.0001781,2]
[393445963,1762666238837,-3921.0,0.00017811,2]
[393445965,1762666238847,-11257.03733992,0.00017811,2]
[393445967,1762666238857,-2500.0,0.00017812,3]
[393445969,1762666238867,-277.70702459,0.00017817,2]
[393445971,1762666238876,-181.32171,0.0001782,2]
[393445972,1762666238886,-2500.0,0.00017821,3]
[393445974,1762666238896,-11257.03733992,0.00017822,2]
[393445976,1762666238906,-2500.0,0.0001783,3]
[393445978,1762666238916,-2761.55368788,0.0001783,2]
[393445980,1762666238927,-300.0,0.00017831,2]
[393445982,1762666238937,-11257.03733992,0.00017833,2]
[393445983,1762666238947,-2500.0,0.00017838,3]
[393445985,1762666238956,-300.0,0.00017839,2]
[393445987,1762666238965,-11257.03733992,0.00017844,2]
[393445989,1762666238975,-2500.0,0.00017847,3]
[393445990,1762666238985,-11257.03733992,0.00017856,2]
[393445992,1762666238995,-2500.0,0.00017856,3]
[393445994,1762666239004,-2500.0,0.00017865,3]
[393445996,1762666239015,-11257.03733992,0.00017867,2]
[393445998,1762666239025,-2500.0,0.00017874,3]
[393446000,1762666239035,-11257.03733992,0.00017878,2]
[393446002,1762666239045,-2500.0,0.00017882,3]
[393446004,1762666239055,-300.0,0.00017888,2]
[393446005,1762666239064,-11257.03733992,0.00017889,2]
[393446007,1762666239074,-2500.0,0.00017891,3]
[393446009,1762666239084,-164.04857777,0.00017898,2]
[393446011,1762666239094,-326.66730844,0.00017898,2]
[393446013,1762666239105,-16541.3757029,0.00017899,2]
[393446015,1762666239117,-16541.37570287,0.00017899,2]
[393446017,1762666239127,-16541.37570287,0.00017899,2]
[393446018,1762666239136,-16541.37570287,0.00017899,2]
[393446019,1762666239146,-16541.37570287,0.00017899,2]
[393446020,1762666239155,-16541.37570287,0.000179,2]
[393446021,1762666239166,-1369.562262,0.000179,2]
[393446023,1762666239176,-5000.0,0.000179,2]
[393446024,1762666239186,-2500.0,0.000179,3]
[393446025,1762666239196,-1260.48251504,0.000179,2]
[393446026,1762666239206,-478.20968403,0.000179,3]
[393446027,1762666239218,-190.10232692,0.000179,3]
[393446028,1762666239228,-300.0,0.000179,6]
[393446029,1762666239239,-290.61747536,0.000179,2]
[393446030,1762666239249,-423.7701242,0.000179,2]
[393446031,1762666239259,-227.0,0.00017902,2]
[393446032,1762666239271,-300.0,0.0001791,2]
[393446033,1762666239280,-500.0,0.00017917,2]
[393446034,1762666239291,-500.0,0.00017917,2]
[393446035,1762666239300,-500.0,0.00017917,2]